[Event "12th Tamil Nadu Circuit-IM 2024"]
[Site "Chennai"]
[Date "2024.01.14"]
[Round "9.3"]
[White "Gochelashvili, David"]
[Black "Pradeep Kumar R A"]
[Result "0-1"]
[ECO "A49"]
[WhiteElo "2287"]
[BlackElo "2189"]
[Annotator "RC"]
[PlyCount "106"]
[EventDate "2024.01.09"]
[EventType "tourn"]
[EventCountry "IND"]
[SourceTitle "playchess.com"]
[Source "ChessBase"]
[SourceQuality "1"]
[TimeControl "5400+30"]

1. d4 {[%emt 0:07:16]} Nf6 {[%emt 0:00:11]} 2. Nf3 {[%emt 0:00:05]} g6 {[%emt 0:00:08]} 3. g3 {[%emt 0:00:09]} Bg7 {[%emt 0:00:12]} 4. Bg2 {[%emt 0:00:05]} O-O {[%emt 0:00:05]} 5. O-O {[%emt 0:00:04]} d6 {[%emt 0:01:57]} 6. a4 {[%emt 0:01:11]} a5 {[%emt 0:00:31]} 7. Nc3 {[%emt 0:00:07]} Nc6 {[%emt 0:00:26]} 8. e4 {[%emt 0:00:15]} e5 {[%emt 0:02:02]} 9. dxe5 {[%emt 0:01:46]} Nxe5 {[%emt 0:00:22]} 10. Nxe5 {[%emt 0:06:27]} dxe5 {[%emt 0:00:14]} 11. Bg5 {[%emt 0:07:44]} c6 {[%emt 0:00:22]} 12. Qxd8 {[%emt 0:14:16]} Rxd8 {[%emt 0:00:06]} 13. Rfd1 {[%emt 0:00:03]} Be6 {[%emt 0:03:45]} 14. f3 {[%emt 0:01:18]} Rxd1+ {[%emt 0:05:28]} 15. Nxd1 {[%emt 0:00:30]} Nd7 {[%emt 0:00:37]} 16. b3 {[%emt 0:03:07]} Bf8 {[%emt 0:01:20]} 17. Kf2 {[%emt 0:00:22]} Bc5+ {[%emt 0:08:43]} 18. Be3 {[%emt 0:00:54]} Kf8 {[%emt 0:00:06]} 19. Nb2 {[%emt 0:01:21]} Ke7 {[%emt 0:04:22]} 20. Rd1 {[%emt 0:06:04]} Bxe3+ {[%emt 0:11:54]} 21. Kxe3 {[%emt 0:00:00]} f5 {[%emt 0:03:50]} 22. Nd3 {[%emt 0:14:50]} fxe4 {[%emt 0:06:08]} 23. fxe4 {[%emt 0:02:56]} b5 {[%emt 0:09:32]} 24. Ra1 {[%emt 0:01:22]} Kd6 {[%emt 0:00:54]} 25. Rd1 {[%emt 0:05:11]} Ke7 {[%emt 0:01:08]} 26. Ra1 {[%emt 0:00:12]} Kd6 {[%emt 0:00:06]} 27. Rd1 {[%emt 0:00:04]} Kc7 {[%emt 0:05:08]} 28. Ra1 {[%emt 0:01:31]} bxa4 {[%emt 0:08:34]} 29. Rxa4 {[%emt 0:00:22]} c5 {[%emt 0:00:04]} 30. Bf1 {[%emt 0:02:40]} c4 {[%emt 0:01:53]} 31. Nc1 {[%emt 0:00:43]} Nc5 {[%emt 0:08:14]} 32. Ra3 {[%emt 0:00:21]} cxb3 {[%emt 0:01:57]} 33. cxb3 {[%emt 0:00:37]} Kb7 {[%emt 0:01:57]} 34. Be2 {[%emt 0:07:15]} Ra7 {[%emt 0:00:14]} 35. Nd3 {[%emt 0:02:33]} Nxd3 {[%emt 0:00:36]} 36. Bxd3 {[%emt 0:00:13]} Kb6 {[%emt 0:00:03]} 37. Bc2 {[%emt 0:03:01]} Rc7 {[%emt 0:01:44]} 38. Kd2 {[%emt 0:00:05]} Rf7 {[%emt 0:00:45]} 39. Ke1 {[%emt 0:05:33]} Rf3 {[%emt 0:01:45]} 40. Ra4 {[%emt 0:00:01]} Bxb3 {[%emt 0:08:26]} 41. Ra3 {[%emt 0:00:44]} a4 {[%emt 0:00:19]} 42. Ke2 {[%emt 0:00:37]} Rc3 {[%emt 0:00:15]} 43. Bxb3 {[%emt 0:00:51]} axb3 {[%emt 0:00:02]} 44. Kd2 {[%emt 0:00:08]} b2 {[%emt 0:00:47]} 45. Kxc3 {[%emt 0:00:07]} b1=Q {[%emt 0:01:35]} 46. Rb3+ {[%emt 0:00:09]} Qxb3+ {[%emt 0:00:04]} 47. Kxb3 {[%emt 0:00:02]} Kb5 {[%emt 0:00:05]} 48. Kc3 {[%emt 0:00:43]} Kc5 {[%emt 0:00:03]} 49. h4 {[%emt 0:00:23]} h5 {[%emt 0:01:11]} 50. Kd3 {[%emt 0:01:41]} Kb4 {[%emt 0:00:06]} 51. Ke3 {[%emt 0:00:10]} Kc3 {[%emt 0:00:05]} 52. Kf3 {[%emt 0:00:04]} Kd4 {[%emt 0:00:18]} 53. g4 {[%emt 0:00:05]} Kd3 {[%emt 0:00:14]} 0-1

[Event "12th Tamil Nadu Circuit-IM 2024"]
[Site "Chennai"]
[Date "2024.01.14"]
[Round "9.4"]
[White "Raghav V"]
[Black "Mohamed Anees M"]
[Result "0-1"]
[ECO "C41"]
[WhiteElo "2150"]
[BlackElo "2319"]
[Annotator "RC"]
[PlyCount "98"]
[EventDate "2024.01.09"]
[EventType "tourn"]
[EventCountry "IND"]
[SourceTitle "playchess.com"]
[Source "ChessBase"]
[SourceQuality "1"]
[TimeControl "5400+30"]

1. e4 {[%emt 0:00:02]} d6 {[%emt 0:00:07]} 2. d4 {[%emt 0:00:14]} Nf6 {[%emt 0:00:06]} 3. Nc3 {[%emt 0:00:25]} e5 {[%emt 0:00:05]} 4. Nf3 {[%emt 0:06:07]} Nbd7 {[%emt 0:00:06]} 5. Bc4 {[%emt 0:03:33]} Be7 {[%emt 0:00:35]} 6. O-O {[%emt 0:00:27]} O-O {[%emt 0:00:07]} 7. h3 {[%emt 0:01:18]} c6 {[%emt 0:00:51]} 8. a4 {[%emt 0:03:10]} h6 {[%emt 0:00:13]} 9. Re1 {[%emt 0:00:49]} Re8 {[%emt 0:00:40]} 10. a5 {[%emt 0:01:03]} Bf8 {[%emt 0:07:57]} 11. d5 {[%emt 0:04:09]} Qc7 {[%emt 0:08:23]} 12. Qe2 {[%emt 0:15:35]} cxd5 {[%emt 0:06:29]} 13. exd5 {[%emt 0:03:09]} a6 {[%emt 0:04:41]} 14. Be3 {[%emt 0:03:56]} g6 {[%emt 0:14:13]} 15. Na4 {[%emt 0:07:09]} Bg7 {[%emt 0:04:53]} 16. Ra3 {[%emt 0:02:47]} Nh5 {[%emt 0:05:53]} 17. Nb6 {[%emt 0:08:00]} Nxb6 {[%emt 0:01:07]} 18. axb6 {[%emt 0:01:06]} Qd8 {[%emt 0:01:37]} 19. g4 {[%emt 0:09:12]} Nf6 {[%emt 0:00:42]} 20. b4 {[%emt 0:01:28]} h5 {[%emt 0:01:47]} 21. g5 {[%emt 0:03:22]} Nd7 {[%emt 0:00:38]} 22. Ba2 {[%emt 0:00:57]} Nxb6 {[%emt 0:01:44]} 23. c4 {[%emt 0:03:28]} Bxh3 {[%emt 0:04:59]} 24. c5 {[%emt 0:01:18]} Bg4 {[%emt 0:01:19]} 25. cxb6 {[%emt 0:02:29]} e4 {[%emt 0:00:58]} 26. Bf4 {[%emt 0:00:09]} Bxf3 {[%emt 0:00:27]} 27. Rxf3 {[%emt 0:00:13]} exf3 {[%emt 0:00:04]} 28. Qxe8+ {[%emt 0:00:05]} Qxe8 {[%emt 0:00:03]} 29. Rxe8+ {[%emt 0:00:07]} Rxe8 {[%emt 0:00:03]} 30. Bxd6 {[%emt 0:00:06]} Re1+ {[%emt 0:03:05]} 31. Kh2 {[%emt 0:00:04]} Be5+ {[%emt 0:01:16]} 32. Bxe5 {[%emt 0:00:07]} Rxe5 {[%emt 0:00:03]} 33. Kg3 {[%emt 0:00:06]} Re4 {[%emt 0:00:34]} 34. Kxf3 {[%emt 0:00:19]} Rxb4 {[%emt 0:00:05]} 35. Ke3 {[%emt 0:00:03]} Kf8 {[%emt 0:00:20]} 36. f4 {[%emt 0:00:10]} Rxb6 {[%emt 0:00:28]} 37. Kd4 {[%emt 0:00:04]} Ke7 {[%emt 0:00:09]} 38. Ke5 {[%emt 0:00:06]} a5 {[%emt 0:00:21]} 39. Bc4 {[%emt 0:00:04]} a4 {[%emt 0:00:07]} 40. Kd4 {[%emt 0:00:17]} Kd6 {[%emt 0:00:07]} 41. Bd3 {[%emt 0:00:03]} a3 {[%emt 0:00:06]} 42. f5 {[%emt 0:00:09]} a2 {[%emt 0:00:04]} 43. fxg6 {[%emt 0:00:27]} a1=Q+ {[%emt 0:00:06]} 44. Ke3 {[%emt 0:00:04]} Qe5+ {[%emt 0:00:06]} 45. Kf3 {[%emt 0:00:25]} Rb3 {[%emt 0:00:05]} 46. gxf7 {[%emt 0:00:04]} Rxd3+ {[%emt 0:00:03]} 47. Kf2 {[%emt 0:00:07]} Qe3+ {[%emt 0:00:05]} 48. Kf1 {[%emt 0:00:07]} Qf3+ {[%emt 0:00:06]} 49. Ke1 {[%emt 0:00:03]} Rd1# {[%emt 0:00:03]} 0-1

[Event "12th Tamil Nadu Circuit-IM 2024"]
[Site "Chennai"]
[Date "2024.01.14"]
[Round "9.5"]
[White "Mamombe, Kudzanai"]
[Black "Prasannaa.s"]
[Result "0-1"]
[ECO "B90"]
[WhiteElo "1797"]
[BlackElo "2213"]
[Annotator "TA"]
[PlyCount "75"]
[EventDate "2024.01.09"]
[EventType "tourn"]
[EventCountry "IND"]
[SourceTitle "playchess.com"]
[Source "ChessBase"]
[SourceQuality "1"]
[TimeControl "5400+30"]

{[%evp 15,75,12,32,-45,-45,-63,-51,-54,-51,-51,-52,-46,-49,-62,-30,-89,-58,-93,-92,-106,-91,-103,-91,-200,-112,-157,-158,-203,-201,-454,-448,-451,-358,-323,-272,-427,-222,-213,-209,-216,-205,-205,-145,-179,-131,-266,-268,-267,-262,-261,-262,-251,-240,-401,-258,-459,-334,-489,-477,-709,-700,-691]} 1. e4 {[%emt 0:05:07]} c5 {[%emt 0:04:40]} 2. Nf3 {[%emt 0:00:09]} d6 {[%emt 0:00:04]} 3. d4 {[%emt 0:00:04]} cxd4 {[%emt 0:00:04]} 4. Nxd4 {[%emt 0:00:04]} Nf6 {[%emt 0:00:04]} 5. Nc3 {[%emt 0:00:08]} a6 {[%emt 0:00:03]} 6. Be3 {[%emt 0:00:28]} e5 {[%emt 0:00:36]} 7. Nb3 {[%emt 0:00:19]} Be7 {[%emt 0:00:07]} 8. f3 {[%emt 0:00:07]} Be6 {[%emt 0:01:20]} 9. g4 {[%emt 0:03:31]} (9. Qd2 $14) 9... d5 $15 {[%emt 0:01:23]} 10. exd5 {[%emt 0:08:54]} Nxd5 {[%emt 0:00:06]} 11. Nxd5 {[%emt 0:00:06] Black is slightly better.} Bh4+ {[%emt 0:04:36]} (11... Qxd5 12. Qxd5 Bxd5 13. Be2 $11) 12. Bf2 {[%emt 0:03:23]} Bxf2+ {[%emt 0:00:05]} 13. Kxf2 {[%emt 0:00:05]} Bxd5 {[%emt 0:00:09]} (13... Qxd5 $6 14. Qxd5 Bxd5 15. Rd1 Bxb3 16. axb3 $14) 14. h4 {[%emt 0:03:06]} O-O {[%emt 0:00:26]} 15. Bd3 {[%emt 0:01:30] Repels f5} (15. Kg3 $11 {keeps the balance.}) 15... Nc6 $17 {[%emt 0:01:09]} 16. Qd2 {[%emt 0:02:17]} Bxb3 {[%emt 0:19:00]} 17. axb3 {[#]} e4 $1 {[%mdl 512]} 18. fxe4 Ne5 19. Rag1 (19. g5 $17 {might work better.}) 19... Qd4+ (19... Qf6+ $19 20. Kg2 Qf3+ (20... Nxg4 21. Rh3 $17) 21. Kh2 Rad8 (21... Nxg4+ $2 22. Rxg4 Qxg4 23. Qf2 $19)) 20. Ke2 Qxb2 {[%emt 0:01:36] Black is much more active.} 21. Rg3 {[%emt 0:06:58]} Rac8 {[%emt 0:01:20]} 22. Kd1 $2 {[%emt 0:06:45]} (22. Qc1 Qd4 (22... Nxd3 $2 23. Qxb2 Nxb2 24. c3 $19) 23. Qe3) 22... Rfd8 $19 {[%emt 0:01:49]} (22... Qa1+ 23. Qc1 Qa2 24. Kd2 $19) 23. Rhh3 {[%emt 0:00:48]} Qa1+ {[%emt 0:04:48]} 24. Qc1 {[%emt 0:07:22]} Qd4 {[%emt 0:01:47][%cal Oe5d3] [#] aiming for ...Nxd3!} 25. Qf4 {[%emt 0:12:39]} (25. Qe3 {only move.}) 25... Nxd3 {[%emt 0:04:15]} (25... a5 $142 26. h5 Qa1+ 27. Qc1 Qa2) 26. Rxd3 {[%emt 0:10:26]} Qg1+ {[%emt 0:00:09]} 27. Kd2 {[%emt 0:00:44]} Qg2+ {[%emt 0:00:08]} 28. Ke1 {[%emt 0:00:59]} Re8 {[%emt 0:00:07]} (28... Qxc2 29. Qd2 Qc7 30. Kf1) 29. Rhf3 {[%emt 0:14:08]} Qxc2 {[%emt 0:03:00]} ({Worse is} 29... Rxc2 30. Qxf7+ Kh8 31. Qxe8#) ({Better is} 29... f6 $19 30. Rd7 Rc6 (30... Rxc2 31. Rxg7+ Kh8 32. Rxh7+ Kxh7 33. Qf5+ Kg8 34. Qg6+ Kh8 35. Qxf6+ Kh7 36. Qf7+ Kh8 37. Qxe8+ Kh7 38. Rf7+ Kh6 39. Qe6#)) 30. g5 {[%emt 0:04:38] Loses the game.} (30. Qxf7+ $17 Kh8 31. Qf4) 30... Qb1+ {[%emt 0:00:47]} 31. Kf2 {[%emt 0:02:27][%cal Od3c3]} Rc2+ {[%emt 0:00:38]} 32. Rd2 {[%emt 0:00:29]} Rxd2+ {[%emt 0:00:04]} 33. Qxd2 {[%emt 0:00:04]} Qxe4 {[%emt 0:00:17] KQR-KQR} ({Inferior is} 33... Rxe4 34. Qd8+) 34. Rf4 {[%emt 0:00:35]} (34. Qf4 Qe6 35. Kg3) 34... Qe6 {[%emt 0:00:25]} 35. h5 $2 {[%emt 0:03:20]} (35. Rf3) 35... Qb6+ {[%emt 0:00:28]} 36. Kf1 {[%emt 0:00:23]} (36. Kg2 {was called for.}) 36... Qb5+ {[%emt 0:00:09]} 37. Kf2 {[%emt 0:00:33]} (37. Rc4 $142) 37... Qxg5 {[%emt 0:00:22]} 38. Qd6 {[%emt 0:01:34] Weighted Error Value: White=0.90/Black=0.43.  Mistake:       	White=9     	Black=3      Inaccurate:     	White=2     	Black=2      OK:         	White=4     	Black=13     Best:        	White=6     	Black=2      Brilliant:      	---       	Black=1} 0-1